[Event "Titled Tuesday Blitz August 02 Late 2022"]
[White "Yoo, Christopher Woojin"]
[Black "Harshavardhan G B"]
[WhiteFideId "30909694"]
[BlackFideId "25059009"]
[WhiteElo "2105"]
[BlackElo "1831"]
[Result "1-0"]
[Round "04"]
[TimeControl "180+1"]
[Date "2022.08.02"]
[WhiteClock "0:01:11"]
[BlackClock "0:01:17"]

1. e4 {[%clk 0:03:00]}  c5 {[%clk 0:02:56]} 2. Nf3 {[%clk 0:03:00]}  d6 {[%clk 0:02:56]} 3. d4 {[%clk 0:03:00]}  cxd4 {[%clk 0:02:57]} 4. Nxd4 {[%clk 0:03:01]}  Nf6 {[%clk 0:02:57]} 5. Nc3 {[%clk 0:03:02]}  Nc6 {[%clk 0:02:58]} 6. Bg5 {[%clk 0:03:00]}  e6 {[%clk 0:02:57]} 7. Qd3 {[%clk 0:03:00]}  Bd7 {[%clk 0:02:54]} 8. Ndb5 {[%clk 0:02:59]}  h6 {[%clk 0:02:46]} 9. Bxf6 {[%clk 0:02:56]}  Qxf6 {[%clk 0:02:47]} 10. Nc7+ {[%clk 0:02:56]}  Kd8 {[%clk 0:02:41]} 11. Nxa8 {[%clk 0:02:57]}  Kc8 {[%clk 0:02:39]} 12. Qd2 {[%clk 0:02:40]}  Kb8 {[%clk 0:02:36]} 13. O-O-O {[%clk 0:02:40]}  Kxa8 {[%clk 0:02:24]} 14. f4 {[%clk 0:02:31]}  Bc8 {[%clk 0:02:06]} 15. Nb5 {[%clk 0:02:22]}  Be7 {[%clk 0:02:05]} 16. Nxd6 {[%clk 0:01:40]}  Rd8 {[%clk 0:01:53]} 17. e5 {[%clk 0:01:39]}  Qg6 {[%clk 0:01:52]} 18. Bd3 {[%clk 0:01:34]}  f5 {[%clk 0:01:52]} 19. exf6 {[%clk 0:01:25]}  Qxf6 {[%clk 0:01:47]} 20. Nxc8 {[%clk 0:01:25]}  Rxc8 {[%clk 0:01:48]} 21. Be4 {[%clk 0:01:24]}  Bc5 {[%clk 0:01:35]} 22. Kb1 {[%clk 0:01:20]}  a6 {[%clk 0:01:28]} 23. Bxc6 {[%clk 0:01:14]}  bxc6 {[%clk 0:01:24]} 24. Qd7 {[%clk 0:01:13]}  Kb8 {[%clk 0:01:25]} 25. Rd3 {[%clk 0:01:12]}  Bb6 {[%clk 0:01:17]} 26. Rb3 {[%clk 0:01:11]} 1-0


[Site "https://www.chess.com"]

[Event "Titled Tuesday Blitz August 02 Late 2022"]
[White "Zhigalko, Sergei"]
[Black "Naroditsky, Daniel"]
[WhiteFideId "13502956"]
[BlackFideId "2026961"]
[WhiteElo "2662"]
[BlackElo "2608"]
[Result "0-1"]
[Round "04"]
[TimeControl "180+1"]
[Date "2022.08.02"]
[WhiteClock "0:00:01"]
[BlackClock "0:01:02"]

1. e4 {[%clk 0:03:00]}  e5 {[%clk 0:02:59]} 2. Nf3 {[%clk 0:03:00]}  Nc6 {[%clk 0:02:59]} 3. Bc4 {[%clk 0:03:01]}  Nf6 {[%clk 0:02:58]} 4. d3 {[%clk 0:03:00]}  h6 {[%clk 0:02:56]} 5. O-O {[%clk 0:02:58]}  d6 {[%clk 0:02:53]} 6. c3 {[%clk 0:02:57]}  g5 {[%clk 0:02:52]} 7. Re1 {[%clk 0:02:51]}  Bg7 {[%clk 0:02:53]} 8. a4 {[%clk 0:02:33]}  a5 {[%clk 0:02:50]} 9. Na3 {[%clk 0:02:26]}  g4 {[%clk 0:02:44]} 10. Nd2 {[%clk 0:02:18]}  h5 {[%clk 0:02:45]} 11. Nf1 {[%clk 0:02:09]}  h4 {[%clk 0:02:44]} 12. Ne3 {[%clk 0:02:02]}  Bh6 {[%clk 0:02:09]} 13. Qb3 {[%clk 0:01:49]}  Rh7 {[%clk 0:02:05]} 14. Nb5 {[%clk 0:01:36]}  g3 {[%clk 0:01:58]} 15. fxg3 {[%clk 0:01:32]}  hxg3 {[%clk 0:01:59]} 16. h3 {[%clk 0:01:22]}  Ne7 {[%clk 0:01:23]} 17. Rf1 {[%clk 0:01:18]}  Bf4 {[%clk 0:01:20]} 18. Bd2 {[%clk 0:00:13]}  c6 {[%clk 0:01:17]} 19. Na3 {[%clk 0:00:13]}  Bxh3 {[%clk 0:01:11]} 20. gxh3 {[%clk 0:00:11]}  Qd7 {[%clk 0:01:11]} 21. Nf5 {[%clk 0:00:05]}  Nxf5 {[%clk 0:01:04]} 22. Bxf4 {[%clk 0:00:05]}  Nh4 {[%clk 0:01:03]} 23. Qc2 {[%clk 0:00:01]}  Qxh3 {[%clk 0:01:02]} 0-1


[Site "https://www.chess.com"]

[Event "Titled Tuesday Blitz August 02 Late 2022"]
[White "Awatramani, Janak"]
[Black "Holt, Conrad"]
[WhiteFideId "2608359"]
[BlackFideId "2034387"]
[WhiteElo "2775"]
[BlackElo "2586"]
[Result "0-1"]
[Round "05"]
[TimeControl "180+1"]
[Date "2022.08.02"]
[WhiteClock "0:00:15"]
[BlackClock "0:00:21"]

1. b3 {[%clk 0:03:00]}  d5 {[%clk 0:02:56]} 2. Bb2 {[%clk 0:03:00]}  Bg4 {[%clk 0:02:55]} 3. Nf3 {[%clk 0:02:58]}  Nc6 {[%clk 0:02:48]} 4. e3 {[%clk 0:02:57]}  e5 {[%clk 0:02:48]} 5. Be2 {[%clk 0:02:58]}  Bd6 {[%clk 0:02:40]} 6. d4 {[%clk 0:02:58]}  Bxf3 {[%clk 0:02:34]} 7. Bxf3 {[%clk 0:02:57]}  exd4 {[%clk 0:02:35]} 8. O-O {[%clk 0:02:49]}  Nf6 {[%clk 0:02:12]} 9. exd4 {[%clk 0:02:49]}  O-O {[%clk 0:02:10]} 10. c4 {[%clk 0:02:49]}  Re8 {[%clk 0:02:00]} 11. cxd5 {[%clk 0:02:37]}  Ne7 {[%clk 0:01:57]} 12. Nc3 {[%clk 0:02:37]}  Qd7 {[%clk 0:01:54]} 13. Rc1 {[%clk 0:02:35]}  Bf4 {[%clk 0:01:52]} 14. Rc2 {[%clk 0:02:34]}  Rac8 {[%clk 0:01:38]} 15. g3 {[%clk 0:02:29]}  Bh6 {[%clk 0:01:38]} 16. d6 {[%clk 0:02:21]}  cxd6 {[%clk 0:01:35]} 17. d5 {[%clk 0:02:22]}  Ng6 {[%clk 0:01:29]} 18. Ne2 {[%clk 0:02:09]}  Ne5 {[%clk 0:01:23]} 19. Bg2 {[%clk 0:02:08]}  Rxc2 {[%clk 0:01:19]} 20. Qxc2 {[%clk 0:02:09]}  Rc8 {[%clk 0:01:20]} 21. Qb1 {[%clk 0:02:03]}  Bd2 {[%clk 0:01:04]} 22. Rd1 {[%clk 0:01:57]}  Ba5 {[%clk 0:01:03]} 23. h3 {[%clk 0:01:47]}  Bb6 {[%clk 0:01:01]} 24. Nd4 {[%clk 0:01:44]}  h5 {[%clk 0:00:57]} 25. f4 {[%clk 0:01:31]}  Ng6 {[%clk 0:00:53]} 26. Kh1 {[%clk 0:01:18]}  Ne7 {[%clk 0:00:46]} 27. Ne2 {[%clk 0:01:05]}  Nfxd5 {[%clk 0:00:46]} 28. Bd4 {[%clk 0:00:45]}  Bxd4 {[%clk 0:00:45]} 29. Rxd4 {[%clk 0:00:44]}  Ne3 {[%clk 0:00:45]} 30. Qd3 {[%clk 0:00:32]}  N7f5 {[%clk 0:00:39]} 31. Re4 {[%clk 0:00:23]}  Nxg2 {[%clk 0:00:37]} 32. Kxg2 {[%clk 0:00:24]}  Qc6 {[%clk 0:00:33]} 33. Kf2 {[%clk 0:00:20]}  Qc5+ {[%clk 0:00:25]} 34. Kg2 {[%clk 0:00:20]}  Qc2 {[%clk 0:00:21]} 35. Re8+ {[%clk 0:00:15]}  Rxe8 {[%clk 0:00:21]} 0-1


[Site "https://www.chess.com"]

[Event "Titled Tuesday Blitz August 02 Late 2022"]
[White "Bilych, Olexiy"]
[Black "Vazquez Espino, Uriel"]
[WhiteFideId "14156504"]
[BlackFideId "5119138"]
[WhiteElo "2189"]
[BlackElo "2385"]
[Result "1-0"]
[Round "05"]
[TimeControl "180+1"]
[Date "2022.08.02"]
[WhiteClock "0:00:58"]
[BlackClock "0:00:23"]

1. e4 {[%clk 0:03:00]}  c5 {[%clk 0:02:59]} 2. Nf3 {[%clk 0:03:00]}  e6 {[%clk 0:02:59]} 3. d4 {[%clk 0:03:00]}  cxd4 {[%clk 0:03:00]} 4. Nxd4 {[%clk 0:03:01]}  Nc6 {[%clk 0:03:01]} 5. Nc3 {[%clk 0:03:01]}  Qc7 {[%clk 0:03:01]} 6. g3 {[%clk 0:03:01]}  a6 {[%clk 0:03:01]} 7. Bg2 {[%clk 0:03:01]}  Nf6 {[%clk 0:03:01]} 8. O-O {[%clk 0:03:01]}  Nxd4 {[%clk 0:03:01]} 9. Qxd4 {[%clk 0:03:01]}  Bc5 {[%clk 0:03:01]} 10. Bf4 {[%clk 0:03:02]}  d6 {[%clk 0:03:01]} 11. Qd2 {[%clk 0:02:59]}  h6 {[%clk 0:03:01]} 12. Rad1 {[%clk 0:02:56]}  e5 {[%clk 0:03:00]} 13. Be3 {[%clk 0:02:57]}  Bxe3 {[%clk 0:03:00]} 14. fxe3 {[%clk 0:02:54]}  Be6 {[%clk 0:02:54]} 15. Qxd6 {[%clk 0:02:52]}  Rc8 {[%clk 0:02:54]} 16. a4 {[%clk 0:02:29]}  Qc5 {[%clk 0:02:19]} 17. Qxc5 {[%clk 0:02:01]}  Rxc5 {[%clk 0:02:20]} 18. Rd2 {[%clk 0:01:59]}  Ke7 {[%clk 0:02:12]} 19. Nd5+ {[%clk 0:01:58]}  Bxd5 {[%clk 0:02:11]} 20. exd5 {[%clk 0:01:59]}  Ne8 {[%clk 0:02:11]} 21. b3 {[%clk 0:01:29]}  Nd6 {[%clk 0:02:08]} 22. c4 {[%clk 0:01:30]}  Rb8 {[%clk 0:01:46]} 23. Ra1 {[%clk 0:01:25]}  Rbc8 {[%clk 0:01:38]} 24. Bf1 {[%clk 0:01:25]}  a5 {[%clk 0:01:34]} 25. Rb2 {[%clk 0:01:23]}  R8c7 {[%clk 0:01:28]} 26. Rab1 {[%clk 0:01:20]}  Rc8 {[%clk 0:01:19]} 27. Kf2 {[%clk 0:01:19]}  R5c7 {[%clk 0:01:18]} 28. g4 {[%clk 0:01:15]}  Ne4+ {[%clk 0:01:17]} 29. Kf3 {[%clk 0:01:13]}  Nd6 {[%clk 0:01:09]} 30. e4 {[%clk 0:01:11]}  g5 {[%clk 0:01:02]} 31. Ke3 {[%clk 0:01:09]}  Rc5 {[%clk 0:01:00]} 32. Be2 {[%clk 0:01:09]}  R5c7 {[%clk 0:00:59]} 33. Bd3 {[%clk 0:01:07]}  Rc5 {[%clk 0:00:54]} 34. Rf1 {[%clk 0:01:08]}  Ra8 {[%clk 0:00:50]} 35. Rbf2 {[%clk 0:01:08]}  Ra6 {[%clk 0:00:43]} 36. Rh1 {[%clk 0:01:04]}  Rb6 {[%clk 0:00:42]} 37. Bc2 {[%clk 0:01:05]}  f6 {[%clk 0:00:34]} 38. h4 {[%clk 0:01:05]}  Nf7 {[%clk 0:00:32]} 39. hxg5 {[%clk 0:01:02]}  fxg5 {[%clk 0:00:23]} 40. Rhf1 {[%clk 0:01:01]}  Nd8 {[%clk 0:00:23]} 41. Rf5 {[%clk 0:00:58]} 1-0


[Site "https://www.chess.com"]

[Event "Titled Tuesday Blitz August 02 Late 2022"]
[White "Czarnota, Pawel"]
[Black "Fedoseev, Vladimir"]
[WhiteFideId "1121219"]
[BlackFideId "24130737"]
[WhiteElo "2534"]
[BlackElo "2726"]
[Result "1/2-1/2"]
[Round "05"]
[TimeControl "180+1"]
[Date "2022.08.02"]
[WhiteClock "0:00:07"]
[BlackClock "0:00:08"]

1. e4 {[%clk 0:03:00]}  c6 {[%clk 0:02:56]} 2. d4 {[%clk 0:03:00]}  d5 {[%clk 0:02:55]} 3. Nc3 {[%clk 0:03:00]}  dxe4 {[%clk 0:02:55]} 4. Nxe4 {[%clk 0:03:01]}  Nd7 {[%clk 0:02:55]} 5. Bc4 {[%clk 0:02:57]}  Ngf6 {[%clk 0:02:51]} 6. Nxf6+ {[%clk 0:02:47]}  exf6 {[%clk 0:02:41]} 7. Nf3 {[%clk 0:02:44]}  Be7 {[%clk 0:02:40]} 8. O-O {[%clk 0:02:43]}  O-O {[%clk 0:02:40]} 9. Be3 {[%clk 0:02:42]}  Nb6 {[%clk 0:02:33]} 10. Bb3 {[%clk 0:02:42]}  a5 {[%clk 0:02:26]} 11. a4 {[%clk 0:02:37]}  Nd5 {[%clk 0:02:24]} 12. Re1 {[%clk 0:02:36]}  Be6 {[%clk 0:02:10]} 13. Bd2 {[%clk 0:02:26]}  Qd7 {[%clk 0:02:09]} 14. c3 {[%clk 0:02:14]}  b5 {[%clk 0:02:07]} 15. Qe2 {[%clk 0:01:53]}  Rfc8 {[%clk 0:01:59]} 16. h3 {[%clk 0:01:53]}  Bf8 {[%clk 0:01:55]} 17. Bc2 {[%clk 0:01:42]}  Nb6 {[%clk 0:01:50]} 18. Qe4 {[%clk 0:01:40]}  g6 {[%clk 0:01:44]} 19. Qh4 {[%clk 0:01:38]}  Bg7 {[%clk 0:01:43]} 20. Bh6 {[%clk 0:01:36]}  Nxa4 {[%clk 0:01:37]} 21. Bxg7 {[%clk 0:01:34]}  Kxg7 {[%clk 0:01:36]} 22. Bxa4 {[%clk 0:01:28]}  bxa4 {[%clk 0:01:36]} 23. Rxa4 {[%clk 0:01:29]}  Rcb8 {[%clk 0:01:34]} 24. Re2 {[%clk 0:01:28]}  Bb3 {[%clk 0:01:26]} 25. Ra1 {[%clk 0:01:25]}  Bc4 {[%clk 0:01:21]} 26. Rd2 {[%clk 0:01:20]}  Qf5 {[%clk 0:01:17]} 27. Qg4 {[%clk 0:01:15]}  Qxg4 {[%clk 0:01:11]} 28. hxg4 {[%clk 0:01:15]}  a4 {[%clk 0:01:09]} 29. Ne1 {[%clk 0:01:12]}  Rb3 {[%clk 0:01:06]} 30. f3 {[%clk 0:01:05]}  Kf8 {[%clk 0:00:54]} 31. Kf2 {[%clk 0:01:05]}  Ke7 {[%clk 0:00:54]} 32. Ke3 {[%clk 0:01:03]}  Kd6 {[%clk 0:00:53]} 33. Kf2 {[%clk 0:00:47]}  Kd5 {[%clk 0:00:45]} 34. g3 {[%clk 0:00:46]}  a3 {[%clk 0:00:43]} 35. bxa3 {[%clk 0:00:28]}  Rxc3 {[%clk 0:00:28]} 36. Nc2 {[%clk 0:00:27]}  Kd6 {[%clk 0:00:28]} 37. Ne3 {[%clk 0:00:25]}  Bb5 {[%clk 0:00:18]} 38. d5 {[%clk 0:00:22]}  c5 {[%clk 0:00:16]} 39. Rb2 {[%clk 0:00:22]}  Ra5 {[%clk 0:00:16]} 40. Rab1 {[%clk 0:00:22]}  Raxa3 {[%clk 0:00:15]} 41. Re1 {[%clk 0:00:18]}  Rcb3 {[%clk 0:00:14]} 42. Rxb3 {[%clk 0:00:17]}  Rxb3 {[%clk 0:00:14]} 43. Rc1 {[%clk 0:00:17]}  Rb2+ {[%clk 0:00:14]} 44. Kg1 {[%clk 0:00:17]}  Re2 {[%clk 0:00:11]} 45. Rc3 {[%clk 0:00:17]}  Rb2 {[%clk 0:00:07]} 46. f4 {[%clk 0:00:16]}  Rd2 {[%clk 0:00:05]} 47. g5 {[%clk 0:00:09]}  fxg5 {[%clk 0:00:05]} 48. fxg5 {[%clk 0:00:10]}  Rd3 {[%clk 0:00:05]} 49. Rxd3 {[%clk 0:00:08]}  Bxd3 {[%clk 0:00:06]} 50. Kf2 {[%clk 0:00:08]}  Bf5 {[%clk 0:00:06]} 51. Ke1 {[%clk 0:00:07]}  Ke5 {[%clk 0:00:06]} 52. Kd2 {[%clk 0:00:08]}  Be4 {[%clk 0:00:06]} 53. Ng4+ {[%clk 0:00:06]}  Kxd5 {[%clk 0:00:06]} 54. Nf6+ {[%clk 0:00:07]}  Ke5 {[%clk 0:00:06]} 55. Nxh7 {[%clk 0:00:07]}  Kf5 {[%clk 0:00:07]} 56. Kc3 {[%clk 0:00:07]}  Bd5 {[%clk 0:00:07]} 57. Kd3 {[%clk 0:00:07]}  Be6 {[%clk 0:00:07]} 58. Ke3 {[%clk 0:00:04]}  Kg4 {[%clk 0:00:08]} 59. Kf2 {[%clk 0:00:04]}  c4 {[%clk 0:00:08]} 60. Ke3 {[%clk 0:00:04]}  Kxg3 {[%clk 0:00:08]} 61. Kd4 {[%clk 0:00:05]}  Kf4 {[%clk 0:00:08]} 62. Kc3 {[%clk 0:00:05]}  Kf5 {[%clk 0:00:08]} 63. Kd4 {[%clk 0:00:05]}  Kf4 {[%clk 0:00:08]} 64. Kc3 {[%clk 0:00:05]}  Ke5 {[%clk 0:00:08]} 65. Nf6 {[%clk 0:00:05]}  Bd5 {[%clk 0:00:09]} 66. Nh7 {[%clk 0:00:05]}  Kd6 {[%clk 0:00:08]} 67. Nf6 {[%clk 0:00:05]}  Kc5 {[%clk 0:00:09]} 68. Nd7+ {[%clk 0:00:05]}  Kd6 {[%clk 0:00:08]} 69. Nf6 {[%clk 0:00:06]}  Be6 {[%clk 0:00:08]} 70. Nh7 {[%clk 0:00:07]}  Ke5 {[%clk 0:00:09]} 71. Nf6 {[%clk 0:00:07]}  Kf4 {[%clk 0:00:08]} 72. Nh7 {[%clk 0:00:07]} 1/2-1/2


[Site "https://www.chess.com"]

[Event "Titled Tuesday Blitz August 02 Late 2022"]
[White "Ghaem Maghami, Ehsan"]
[Black "Yoo, Christopher Woojin"]
[WhiteFideId "12500739"]
[BlackFideId "30909694"]
[WhiteElo "2627"]
[BlackElo "2105"]
[Result "1/2-1/2"]
[Round "05"]
[TimeControl "180+1"]
[Date "2022.08.02"]
[WhiteClock "0:00:07"]
[BlackClock "0:00:05"]

1. e4 {[%clk 0:02:59]}  c5 {[%clk 0:02:59]} 2. Nf3 {[%clk 0:02:59]}  e6 {[%clk 0:02:59]} 3. g3 {[%clk 0:02:59]}  Nc6 {[%clk 0:02:59]} 4. Bg2 {[%clk 0:02:59]}  d5 {[%clk 0:02:56]} 5. exd5 {[%clk 0:02:59]}  exd5 {[%clk 0:02:57]} 6. d4 {[%clk 0:02:59]}  Bg4 {[%clk 0:02:56]} 7. Be3 {[%clk 0:02:50]}  cxd4 {[%clk 0:02:48]} 8. Bxd4 {[%clk 0:02:50]}  Qe7+ {[%clk 0:02:48]} 9. Kf1 {[%clk 0:02:49]}  Qb4 {[%clk 0:02:19]} 10. Bc3 {[%clk 0:02:23]}  Qb5+ {[%clk 0:02:19]} 11. Qe2+ {[%clk 0:02:20]}  Qxe2+ {[%clk 0:02:18]} 12. Kxe2 {[%clk 0:02:21]}  d4 {[%clk 0:02:18]} 13. Bd2 {[%clk 0:02:19]}  O-O-O {[%clk 0:02:17]} 14. h3 {[%clk 0:02:02]}  d3+ {[%clk 0:02:00]} 15. Kf1 {[%clk 0:01:43]}  Bxf3 {[%clk 0:01:22]} 16. Bxf3 {[%clk 0:01:43]}  Nd4 {[%clk 0:01:18]} 17. Kg2 {[%clk 0:01:14]}  Nxc2 {[%clk 0:01:00]} 18. Nc3 {[%clk 0:01:03]}  Nxa1 {[%clk 0:00:59]} 19. Rxa1 {[%clk 0:01:03]}  a6 {[%clk 0:00:46]} 20. Ne4 {[%clk 0:00:47]}  Ne7 {[%clk 0:00:42]} 21. Ng5 {[%clk 0:00:45]}  Nc6 {[%clk 0:00:21]} 22. Nxf7 {[%clk 0:00:45]}  Bb4 {[%clk 0:00:20]} 23. Rd1 {[%clk 0:00:38]}  Bxd2 {[%clk 0:00:15]} 24. Rxd2 {[%clk 0:00:36]}  g6 {[%clk 0:00:03]} 25. Nxh8 {[%clk 0:00:35]}  Rxh8 {[%clk 0:00:04]} 26. Bxc6 {[%clk 0:00:33]}  bxc6 {[%clk 0:00:04]} 27. Rxd3 {[%clk 0:00:33]}  Kc7 {[%clk 0:00:05]} 28. f4 {[%clk 0:00:29]}  Re8 {[%clk 0:00:04]} 29. Kf3 {[%clk 0:00:27]}  Re1 {[%clk 0:00:03]} 30. Re3 {[%clk 0:00:27]}  Rf1+ {[%clk 0:00:03]} 31. Kg4 {[%clk 0:00:26]}  Rf2 {[%clk 0:00:04]} 32. Re7+ {[%clk 0:00:19]}  Kb6 {[%clk 0:00:04]} 33. Rxh7 {[%clk 0:00:20]}  Rxb2 {[%clk 0:00:04]} 34. Rg7 {[%clk 0:00:20]}  Rxa2 {[%clk 0:00:04]} 35. Rxg6 {[%clk 0:00:20]}  a5 {[%clk 0:00:05]} 36. h4 {[%clk 0:00:20]}  a4 {[%clk 0:00:05]} 37. Rg8 {[%clk 0:00:19]}  Kb7 {[%clk 0:00:05]} 38. Re8 {[%clk 0:00:19]}  a3 {[%clk 0:00:05]} 39. Re3 {[%clk 0:00:19]}  Ra1 {[%clk 0:00:04]} 40. h5 {[%clk 0:00:19]}  a2 {[%clk 0:00:04]} 41. Ra3 {[%clk 0:00:18]}  c5 {[%clk 0:00:05]} 42. h6 {[%clk 0:00:18]}  Rh1 {[%clk 0:00:05]} 43. Rxa2 {[%clk 0:00:18]}  Rxh6 {[%clk 0:00:05]} 44. f5 {[%clk 0:00:18]}  Kc7 {[%clk 0:00:03]} 45. Kg5 {[%clk 0:00:18]}  Rh8 {[%clk 0:00:03]} 46. f6 {[%clk 0:00:18]}  Rg8+ {[%clk 0:00:03]} 47. Kf4 {[%clk 0:00:18]}  Kd6 {[%clk 0:00:03]} 48. Re2 {[%clk 0:00:17]}  c4 {[%clk 0:00:02]} 49. g4 {[%clk 0:00:16]}  c3 {[%clk 0:00:03]} 50. g5 {[%clk 0:00:16]}  Rc8 {[%clk 0:00:03]} 51. Rc2 {[%clk 0:00:16]}  Ke6 {[%clk 0:00:03]} 52. Re2+ {[%clk 0:00:15]}  Kf7 {[%clk 0:00:03]} 53. Re7+ {[%clk 0:00:13]}  Kg6 {[%clk 0:00:04]} 54. Rg7+ {[%clk 0:00:13]}  Kh5 {[%clk 0:00:04]} 55. Rh7+ {[%clk 0:00:12]}  Kg6 {[%clk 0:00:05]} 56. Rh6+ {[%clk 0:00:13]}  Kf7 {[%clk 0:00:05]} 57. Rh7+ {[%clk 0:00:07]}  Kg6 {[%clk 0:00:05]} 58. Rg7+ {[%clk 0:00:07]}  Kh5 {[%clk 0:00:05]} 59. Rh7+ {[%clk 0:00:07]}  Kg6 {[%clk 0:00:05]} 1/2-1/2


[Site "https://www.chess.com"]

[Event "Titled Tuesday Blitz August 02 Late 2022"]
[White "Hakobyan, Aram"]
[Black "Nazari, Arad"]
[WhiteFideId "13306677"]
[BlackFideId "12577324"]
[WhiteElo "2557"]
[BlackElo "2129"]
[Result "1-0"]
[Round "05"]
[TimeControl "180+1"]
[Date "2022.08.02"]
[WhiteClock "0:02:29"]
[BlackClock "0:01:15"]

1. e4 {[%clk 0:03:00]}  e5 {[%clk 0:02:59]} 2. Nf3 {[%clk 0:02:57]}  Nc6 {[%clk 0:03:00]} 3. Bb5 {[%clk 0:02:57]}  a6 {[%clk 0:03:00]} 4. Ba4 {[%clk 0:02:57]}  Nf6 {[%clk 0:03:01]} 5. O-O {[%clk 0:02:57]}  Nxe4 {[%clk 0:03:02]} 6. Re1 {[%clk 0:02:57]}  Nc5 {[%clk 0:03:00]} 7. Bxc6 {[%clk 0:02:57]}  dxc6 {[%clk 0:03:01]} 8. Nxe5 {[%clk 0:02:57]}  Be7 {[%clk 0:03:01]} 9. d4 {[%clk 0:02:57]}  Ne6 {[%clk 0:03:01]} 10. Be3 {[%clk 0:02:58]}  O-O {[%clk 0:03:01]} 11. c4 {[%clk 0:02:58]}  Re8 {[%clk 0:03:01]} 12. Nc3 {[%clk 0:02:58]}  Bd6 {[%clk 0:02:45]} 13. Nf3 {[%clk 0:02:51]}  Nf8 {[%clk 0:02:44]} 14. h3 {[%clk 0:02:51]}  Bf5 {[%clk 0:02:42]} 15. Qb3 {[%clk 0:02:51]}  Rb8 {[%clk 0:02:41]} 16. Rad1 {[%clk 0:02:52]}  Qf6 {[%clk 0:02:33]} 17. c5 {[%clk 0:02:50]}  Be7 {[%clk 0:02:31]} 18. d5 {[%clk 0:02:51]}  cxd5 {[%clk 0:02:14]} 19. Nxd5 {[%clk 0:02:50]}  Qg6 {[%clk 0:02:15]} 20. Ne5 {[%clk 0:02:39]}  Qh5 {[%clk 0:01:50]} 21. Nf4 {[%clk 0:02:36]}  Qg5 {[%clk 0:01:28]} 22. Nxf7 {[%clk 0:02:30]}  Qf6 {[%clk 0:01:15]} 23. Nh6+ {[%clk 0:02:29]} 1-0


[Site "https://www.chess.com"]

[Event "Titled Tuesday Blitz August 02 Late 2022"]
[White "Harsha Bharathakoti"]
[Black "Kosteniuk, Alexandra"]
[WhiteFideId "5078776"]
[BlackFideId "4128125"]
[WhiteElo "2575"]
[BlackElo "2469"]
[Result "1/2-1/2"]
[Round "05"]
[TimeControl "180+1"]
[Date "2022.08.02"]
[WhiteClock "0:00:07"]
[BlackClock "0:00:14"]

1. c4 {[%clk 0:03:00]}  e5 {[%clk 0:02:59]} 2. Nf3 {[%clk 0:02:59]}  Nc6 {[%clk 0:02:59]} 3. Nc3 {[%clk 0:02:58]}  Nf6 {[%clk 0:02:59]} 4. e3 {[%clk 0:02:59]}  d5 {[%clk 0:02:57]} 5. cxd5 {[%clk 0:02:58]}  Nxd5 {[%clk 0:02:58]} 6. Bb5 {[%clk 0:02:58]}  Nxc3 {[%clk 0:02:54]} 7. bxc3 {[%clk 0:02:59]}  e4 {[%clk 0:02:49]} 8. Nd4 {[%clk 0:02:54]}  Bd7 {[%clk 0:02:46]} 9. Qa4 {[%clk 0:02:50]}  Nxd4 {[%clk 0:02:40]} 10. cxd4 {[%clk 0:02:37]}  Bd6 {[%clk 0:02:23]} 11. Bxd7+ {[%clk 0:02:24]}  Qxd7 {[%clk 0:02:24]} 12. Qxd7+ {[%clk 0:02:24]}  Kxd7 {[%clk 0:02:24]} 13. Rb1 {[%clk 0:02:25]}  b6 {[%clk 0:02:18]} 14. Ke2 {[%clk 0:02:24]}  c5 {[%clk 0:02:11]} 15. dxc5 {[%clk 0:02:23]}  Bxc5 {[%clk 0:02:11]} 16. Bb2 {[%clk 0:02:23]}  f6 {[%clk 0:02:09]} 17. Rbc1 {[%clk 0:02:11]}  Rhe8 {[%clk 0:02:07]} 18. Rc4 {[%clk 0:02:07]}  Rac8 {[%clk 0:02:05]} 19. f3 {[%clk 0:01:49]}  exf3+ {[%clk 0:01:54]} 20. gxf3 {[%clk 0:01:50]}  b5 {[%clk 0:01:50]} 21. Rc3 {[%clk 0:01:46]}  Bf8 {[%clk 0:01:38]} 22. Rd3+ {[%clk 0:01:41]}  Ke6 {[%clk 0:01:38]} 23. Rb1 {[%clk 0:01:31]}  b4 {[%clk 0:01:33]} 24. a3 {[%clk 0:01:30]}  a5 {[%clk 0:01:33]} 25. axb4 {[%clk 0:01:30]}  axb4 {[%clk 0:01:33]} 26. Rd4 {[%clk 0:01:24]}  Ra8 {[%clk 0:01:29]} 27. Re4+ {[%clk 0:01:14]}  Kd5 {[%clk 0:01:30]} 28. Rd4+ {[%clk 0:01:12]}  Ke6 {[%clk 0:01:29]} 29. h4 {[%clk 0:01:05]}  Ra2 {[%clk 0:01:25]} 30. Re4+ {[%clk 0:01:04]}  Kd7 {[%clk 0:01:24]} 31. Rxe8 {[%clk 0:01:04]}  Kxe8 {[%clk 0:01:24]} 32. Kd3 {[%clk 0:00:58]}  Kf7 {[%clk 0:01:25]} 33. h5 {[%clk 0:00:57]}  Ra5 {[%clk 0:01:23]} 34. Rh1 {[%clk 0:00:58]}  Rc5 {[%clk 0:01:09]} 35. Bd4 {[%clk 0:00:58]}  Ra5 {[%clk 0:00:55]} 36. f4 {[%clk 0:00:55]}  g6 {[%clk 0:00:44]} 37. hxg6+ {[%clk 0:00:55]}  Kxg6 {[%clk 0:00:45]} 38. Rg1+ {[%clk 0:00:54]}  Kf7 {[%clk 0:00:45]} 39. Kc4 {[%clk 0:00:54]}  h5 {[%clk 0:00:44]} 40. e4 {[%clk 0:00:54]}  h4 {[%clk 0:00:40]} 41. f5 {[%clk 0:00:54]}  Ra3 {[%clk 0:00:40]} 42. d3 {[%clk 0:00:52]}  Ra2 {[%clk 0:00:39]} 43. Rh1 {[%clk 0:00:46]}  Rc2+ {[%clk 0:00:39]} 44. Kb3 {[%clk 0:00:47]}  Rd2 {[%clk 0:00:40]} 45. Rh3 {[%clk 0:00:47]}  Bd6 {[%clk 0:00:36]} 46. Rxh4 {[%clk 0:00:45]}  Rxd3+ {[%clk 0:00:36]} 47. Kc4 {[%clk 0:00:45]}  Rg3 {[%clk 0:00:26]} 48. Kd5 {[%clk 0:00:21]}  Bf8 {[%clk 0:00:20]} 49. Rh2 {[%clk 0:00:18]}  b3 {[%clk 0:00:19]} 50. Kc4 {[%clk 0:00:18]}  Ba3 {[%clk 0:00:19]} 51. Rh7+ {[%clk 0:00:17]}  Kg8 {[%clk 0:00:17]} 52. Rb7 {[%clk 0:00:17]}  b2 {[%clk 0:00:15]} 53. Bxf6 {[%clk 0:00:14]}  Re3 {[%clk 0:00:15]} 54. Kd5 {[%clk 0:00:08]}  Rd3+ {[%clk 0:00:16]} 55. Kc4 {[%clk 0:00:05]}  Re3 {[%clk 0:00:16]} 56. Bxb2 {[%clk 0:00:02]}  Bxb2 {[%clk 0:00:14]} 57. Rxb2 {[%clk 0:00:03]}  Rxe4+ {[%clk 0:00:15]} 58. Kd5 {[%clk 0:00:04]}  Re1 {[%clk 0:00:14]} 59. Rb7 {[%clk 0:00:04]}  Kf8 {[%clk 0:00:14]} 60. f6 {[%clk 0:00:04]}  Re2 {[%clk 0:00:14]} 61. Kd6 {[%clk 0:00:04]}  Re1 {[%clk 0:00:14]} 62. Re7 {[%clk 0:00:05]}  Rd1+ {[%clk 0:00:13]} 63. Ke6 {[%clk 0:00:05]}  Re1+ {[%clk 0:00:14]} 64. Kf5 {[%clk 0:00:06]}  Rxe7 {[%clk 0:00:14]} 65. fxe7+ {[%clk 0:00:07]}  Kxe7 {[%clk 0:00:14]} 1/2-1/2


[Site "https://www.chess.com"]